fUST/lending_fUST_20260308
["ID","MTS","AMOUNT","RATE_DAILY","PERIOD"]
[407987872,1772975438783,-500.0,3.173e-05,2]
[407987874,1772975438792,-500.0,3.173e-05,2]
[407987876,1772975438802,-500.0,3.173e-05,2]
[407987878,1772975438811,-500.0,3.173e-05,2]
[407987880,1772975438819,-500.0,3.173e-05,2]
[407987882,1772975438828,-500.0,3.173e-05,2]
[407987884,1772975438837,-500.0,3.173e-05,2]
[407987886,1772975438846,-500.0,3.173e-05,2]
[407987888,1772975438855,-500.0,3.173e-05,2]
[407987890,1772975438864,-500.0,3.173e-05,2]
[407987892,1772975438873,-500.0,3.173e-05,2]
[407987894,1772975438883,-500.0,3.173e-05,2]
[407987896,1772975438892,-500.0,3.173e-05,2]
[407987898,1772975438901,-197.03019721,3.173e-05,2]
[407987900,1772975438910,-500.0,3.173e-05,2]
[407987902,1772975438919,-500.0,3.173e-05,2]
[407987904,1772975438928,-500.0,3.173e-05,2]
[407987906,1772975438937,-500.0,3.173e-05,2]
[407987908,1772975438946,-500.0,3.173e-05,2]
[407987910,1772975438954,-500.0,3.173e-05,2]
[407987912,1772975438963,-500.0,3.173e-05,2]
[407987914,1772975438972,-500.0,3.173e-05,2]
[407987916,1772975438981,-1548.9092713,3.187e-05,2]
[407987918,1772975438990,-3599.841495,3.187e-05,2]
[407987920,1772975438999,-135703.26589279,3.2e-05,2]
[407987922,1772975439010,-379.64897681,3.2e-05,2]
[407988134,1772975441067,-2433.1418704,3.2e-05,2]
[407988136,1772975441078,-4609.98850096,3.2e-05,2]
[407988138,1772975441089,-9621.62284973,3.2e-05,2]
[407988140,1772975441101,-28402.88775087,3.2e-05,2]
[407988354,1772975443860,-5493.01393776,3.2e-05,2]
[407988369,1772975446524,-321.21797996,3.168e-05,2]
[407988370,1772975446534,-19904.74766603,3.2e-05,2]
[407988371,1772975446633,-280.3233881,3.2e-05,2]
[407988372,1772975551645,3149.0,0.000115,120]
[407988373,1772975551670,3300.0,0.000115,120]
[407988374,1772975551695,3300.0,0.000115,120]
[407988375,1772975551720,3300.0,0.000115,120]
[407988376,1772975551743,3300.0,0.000115,120]
[407988414,1772976631590,-665.05,2.735e-05,2]
[407988415,1772976631605,-4334.95,2.735e-05,2]
[407988416,1772976631615,-4119.39340059,2.763e-05,2]
[407988417,1772976631625,-1200.0,2.79e-05,2]
[407988418,1772976631635,-265.4300767,2.861e-05,2]
[407988419,1772976631645,-300.0,2.874e-05,2]
[407988420,1772976631654,-300.0,2.874e-05,2]
[407988422,1772976631664,-300.0,2.874e-05,2]
[407988424,1772976631674,-300.0,2.962e-05,2]
[407988426,1772976631683,-500.0,2.963e-05,2]
[407988428,1772976631692,-500.0,2.963e-05,2]
[407988430,1772976631702,-500.0,2.963e-05,2]
[407988432,1772976631711,-500.0,2.963e-05,2]
[407988434,1772976631720,-239.41291991,2.963e-05,2]
[407988436,1772976631732,-260.58708009,2.963e-05,2]
[407988439,1772976631741,-500.0,2.963e-05,2]
[407988441,1772976631751,-500.0,2.963e-05,2]
[407988443,1772976631760,-150.31485421,2.963e-05,2]
[407988445,1772976631770,-500.0,2.963e-05,2]
[407988447,1772976631779,-500.0,2.963e-05,2]
[407988449,1772976631788,-500.0,2.963e-05,2]
[407988451,1772976631798,-500.0,2.963e-05,2]
[407988453,1772976631808,-500.0,2.963e-05,2]
[407988455,1772976631818,-500.0,2.963e-05,2]
[407988457,1772976631828,-500.0,2.963e-05,2]
[407988460,1772976631838,-24.3442637,2.963e-05,2]
[407988614,1772976637812,-64748.39192935,2.887e-05,2]
[407988616,1772976637823,-30542.74436907,2.887e-05,2]
[407989066,1772976645714,-1082.59443861,2.887e-05,2]
[407989068,1772976645726,-6864.1674737,2.887e-05,2]
[407989088,1772977831732,-1080.57647408,2.704e-05,2]
[407989090,1772977831744,-3919.42352592,2.704e-05,2]
[407989092,1772977831754,-260.12147516,2.747e-05,2]
[407989094,1772977831764,-300.0,2.762e-05,2]
[407989096,1772977831773,-500.0,2.763e-05,2]
[407989098,1772977831783,-500.0,2.763e-05,2]
[407989100,1772977831793,-500.0,2.763e-05,2]
[407989102,1772977831802,-500.0,2.763e-05,2]
[407989104,1772977831812,-500.0,2.763e-05,2]
[407989106,1772977831821,-500.0,2.763e-05,2]
[407989108,1772977831830,-500.0,2.763e-05,2]
[407989110,1772977831839,-424.06999652,2.763e-05,2]
[407989112,1772977831849,-500.0,2.763e-05,2]
[407989114,1772977831861,-500.0,2.763e-05,2]
[407989116,1772977831871,-500.0,2.763e-05,2]
[407989118,1772977831880,-500.0,2.763e-05,2]
[407989120,1772977831890,-500.0,2.763e-05,2]
[407989123,1772977831901,-500.0,2.763e-05,2]
[407989125,1772977831910,-500.0,2.763e-05,2]
[407989127,1772977831920,-500.0,2.763e-05,2]
[407989128,1772977831930,-500.0,2.763e-05,2]
[407989131,1772977831940,-500.0,2.763e-05,2]
[407989133,1772977831950,-458.98409382,2.763e-05,2]
[407989135,1772977831960,-186137.40090858,2.787e-05,2]
[407989137,1772977831972,-6341.04758741,2.787e-05,2]
[407989139,1772977831983,-316.46762157,2.787e-05,2]
[407989141,1772977831996,-960.49457116,2.787e-05,2]
[407989144,1772977832013,-5853.37613173,2.787e-05,2]
[407989146,1772977832024,-3373.09007114,2.787e-05,2]
[407989149,1772977832036,-2500.0,2.787e-05,2]
[407989200,1772977837969,-14039.27441913,2.787e-05,2]
[407989202,1772977837980,-6150.13040217,2.787e-05,2]
[407989421,1772977840275,-1119.34001489,2.787e-05,2]
[407989496,1772977842929,-3440.97879809,2.787e-05,2]
[407989497,1772977842945,-3759.52690935,2.787e-05,2]
[407989498,1772977843041,-2624.67374435,2.787e-05,2]
[407989512,1772977845976,-14970.90944582,2.787e-05,2]
[407989513,1772977939825,151.0,0.000114,120]
[407989517,1772978152804,10803.45000001,2.001e-05,2]
[407989530,1772978423867,-3512.45079201,2.034e-05,2]
[407989531,1772978431004,5000.0,2.001e-05,2]
[407989549,1772978645044,5000.0,2.001e-05,2]
[407989550,1772978667113,5000.0,2.001e-05,2]
[407989551,1772978689806,5000.0,2.001e-05,2]
[407989552,1772978712272,5000.0,2.001e-05,2]
[407989553,1772978734624,5000.0,2.001e-05,2]
[407989554,1772978757409,5000.0,2.001e-05,2]
[407989555,1772978779384,5000.0,2.001e-05,2]
[407989556,1772978802660,5000.0,2.001e-05,2]
[407989557,1772978824660,5000.0,2.001e-05,2]
[407989558,1772978847300,5000.0,2.001e-05,2]
[407989559,1772978871430,4616.98087117,2.001e-05,2]
[407989576,1772979031937,-260.97277724,2.055e-05,2]
[407989578,1772979031947,-183.6961709,2.076e-05,2]
[407989580,1772979031957,-300.0,2.094e-05,2]
[407989582,1772979031966,-300.0,2.094e-05,2]
[407989584,1772979031975,-300.0,2.094e-05,2]
[407989586,1772979031984,-300.0,2.095e-05,2]
[407989588,1772979031994,-720.0,2.095e-05,2]
[407989589,1772979032004,-300.0,2.096e-05,2]
[407989590,1772979032013,-300.0,2.096e-05,2]
[407989591,1772979032022,-300.0,2.096e-05,2]
[407989592,1772979032031,-300.0,2.096e-05,2]
[407989595,1772979032041,-300.0,2.096e-05,2]
[407989596,1772979032051,-300.0,2.096e-05,2]
[407989598,1772979032060,-300.0,2.096e-05,2]
[407989600,1772979032069,-160.31407986,2.096e-05,2]
[407989602,1772979032081,-139.68592014,2.096e-05,2]
[407989604,1772979032091,-300.0,2.096e-05,2]
[407989606,1772979032101,-300.0,2.096e-05,2]
[407989607,1772979032110,-300.0,2.096e-05,2]
[407989609,1772979032120,-300.0,2.096e-05,2]
[407989611,1772979032129,-300.0,2.096e-05,2]
[407989613,1772979032138,-300.0,2.096e-05,2]
[407989614,1772979032148,-300.0,2.096e-05,2]
[407989615,1772979032157,-5612.69175382,2.3e-05,2]
[407989616,1772979037671,-369.79692264,2.277e-05,2]
[407989617,1772979037683,-687.94459378,2.277e-05,2]
[407989618,1772979037692,-15387.30824618,2.3e-05,2]
[407989619,1772979037702,-420.0,2.303e-05,2]
[407989620,1772979037711,-206.0,2.303e-05,2]
[407989621,1772979037720,-500.0,2.563e-05,2]
[407989622,1772979037729,-500.0,2.563e-05,2]
[407989623,1772979037737,-500.0,2.563e-05,2]
[407989624,1772979037746,-500.0,2.563e-05,2]
[407989625,1772979037755,-500.0,2.563e-05,2]
[407989627,1772979037765,-500.0,2.563e-05,2]
[407989629,1772979037774,-500.0,2.563e-05,2]
[407989631,1772979037783,-500.0,2.563e-05,2]
[407989632,1772979037792,-500.0,2.563e-05,2]
[407989633,1772979037802,-500.0,2.563e-05,2]
[407989634,1772979037811,-500.0,2.563e-05,2]
[407989635,1772979037820,-500.0,2.563e-05,2]
[407989636,1772979037829,-500.0,2.563e-05,2]
[407989637,1772979037838,-500.0,2.563e-05,2]
[407989638,1772979037847,-500.0,2.563e-05,2]
[407989639,1772979037856,-500.0,2.563e-05,2]
[407989640,1772979037865,-500.0,2.563e-05,2]
[407989641,1772979037875,-500.0,2.563e-05,2]
[407989642,1772979037884,-500.0,2.563e-05,2]
[407989643,1772979037893,-500.0,2.563e-05,2]
[407989644,1772979037903,-500.0,2.563e-05,2]
[407989645,1772979037912,-500.0,2.563e-05,2]
[407989646,1772979037921,-20118.04408187,2.587e-05,2]
[407989647,1772979037933,-4543.55715804,2.587e-05,2]
[407989661,1772979038121,-1756.27966031,2.587e-05,2]
[407989669,1772979038180,-47388.51305982,2.587e-05,2]
[407989671,1772979038192,-1465.00951315,2.587e-05,2]
[407989673,1772979038203,-5199.95634752,2.587e-05,2]
[407990067,1772979046003,-5000.0,2.535e-05,2]
[407990068,1772979046013,-4948.6632714,2.561e-05,2]
[407990069,1772979046023,-9388.5365939,2.587e-05,2]
[407990070,1772979046034,-11490.74,2.587e-05,2]
[407990113,1772980232150,-640.63966257,2.247e-05,2]
[407990210,1772980238324,-4359.36033743,2.247e-05,2]
[407990211,1772980238334,-280.49198784,2.259e-05,2]
[407990212,1772980238344,-1113.69484273,2.27e-05,2]
[407990213,1772980238384,-2897.8629948,2.27e-05,2]
[407990214,1772980238393,-300.0,2.361e-05,2]
[407990215,1772980238403,-781.0,2.527e-05,2]
[407990216,1772980238412,-276.1109099,2.528e-05,2]
[407990217,1772980238422,-7101.6343626,2.528e-05,2]
[407990218,1772980238432,-500.0,2.533e-05,2]
[407990219,1772980238441,-500.0,2.533e-05,2]
[407990220,1772980238450,-500.0,2.533e-05,2]
[407990221,1772980238460,-500.0,2.533e-05,2]
[407990222,1772980238469,-500.0,2.533e-05,2]
[407990223,1772980238478,-500.0,2.533e-05,2]
[407990224,1772980238487,-500.0,2.533e-05,2]
[407990225,1772980238496,-500.0,2.533e-05,2]
[407990226,1772980238506,-500.0,2.533e-05,2]
[407990227,1772980238515,-500.0,2.533e-05,2]
[407990228,1772980238524,-173159.49268959,2.56e-05,2]
[407990229,1772980238536,-348.921,2.56e-05,2]
[407990575,1772980246222,-1381.0,2.225e-05,2]
[407990576,1772980246233,-3619.0,2.225e-05,2]
[407990577,1772980246242,-30341.4653398,2.56e-05,2]
[407990578,1772980246338,-6923.1,2.56e-05,2]
[407990587,1772980385466,358.434071,1.712e-05,2]
[407990588,1772980385669,358.434071,1.785e-05,2]
[407990589,1772980386272,358.434071,1.857e-05,2]
[407990590,1772980386324,358.434071,1.929e-05,2]
[407990591,1772980390332,358.434071,2.001e-05,2]
[407990592,1772980464794,358.434071,2.001e-05,2]
[407990594,1772980641023,358.434071,2.001e-05,2]
[407990599,1772980791164,4119.39340059,2.001e-05,2]
[407990600,1772980817084,165.267408,1.688e-05,2]
[407990601,1772980841523,5000.0,2.001e-05,2]
[407990610,1772981250189,1625.09953082,2.001e-05,2]
[407990624,1772981432390,-970.1,2.027e-05,2]
[407990631,1772981438419,-4029.9,2.027e-05,2]
[407990632,1772981438429,-286.09783105,2.047e-05,2]
[407990633,1772981438438,-358.434071,2.073e-05,2]
[407990634,1772981438448,-300.0,2.491e-05,2]
[407990635,1772981438459,-300.0,2.491e-05,2]
[407990636,1772981438470,-300.0,2.491e-05,2]
[407990637,1772981438480,-1200.0,2.491e-05,2]
[407990638,1772981438489,-300.0,2.491e-05,2]
[407990639,1772981438499,-500.0,2.493e-05,2]
[407990640,1772981438509,-500.0,2.493e-05,2]
[407990641,1772981438519,-500.0,2.493e-05,2]
[407990642,1772981438528,-500.0,2.493e-05,2]
[407990643,1772981438538,-500.0,2.493e-05,2]
[407990644,1772981438547,-264.89779031,2.493e-05,2]
[407990645,1772981438556,-500.0,2.493e-05,2]
[407990646,1772981438565,-500.0,2.493e-05,2]
[407990647,1772981438575,-500.0,2.493e-05,2]
[407990648,1772981438584,-220.13419402,2.493e-05,2]
[407990650,1772981438593,-500.0,2.493e-05,2]
[407990652,1772981438603,-500.0,2.493e-05,2]
[407990654,1772981438612,-210.46582884,2.493e-05,2]
[407990886,1772981446399,-289.53417116,2.493e-05,2]
[407990888,1772981446409,-500.0,2.493e-05,2]
[407990889,1772981446418,-322.54134891,2.493e-05,2]
[407990890,1772981446428,-251.29115087,2.528e-05,2]
[407990891,1772981446438,-500.0,2.533e-05,2]
[407990892,1772981446447,-635.01358848,2.533e-05,2]
[407990893,1772981446459,-6804.49131307,2.534e-05,2]
[407990894,1772981446469,-12.51753089,2.587e-05,2]
[407990923,1772982585202,1592.7625988,1.567e-05,2]
[407990931,1772982631535,-5000.0,2.095e-05,2]
[407990932,1772982631545,-175.451988,2.116e-05,2]
[407990933,1772982631554,-175.451988,2.137e-05,2]
[407990934,1772982631564,-292.17288187,2.17e-05,2]
[407990935,1772982631573,-300.0,2.535e-05,2]
[407990936,1772982631582,-62.38899632,2.535e-05,2]
[407990937,1772982631597,-237.61100368,2.535e-05,2]
[407990938,1772982631605,-2686.44803427,2.536e-05,2]
[407990939,1772982631616,-2846.86092013,2.536e-05,2]
[407990940,1772982631625,-877.18456778,2.587e-05,2]
[407990942,1772982631636,-1000.0,2.587e-05,2]
[407990944,1772982631645,-860.88149963,2.587e-05,2]
[407990946,1772982631655,-300.0,2.611e-05,2]
[407990948,1772982631664,-300.0,2.611e-05,2]
[407990950,1772982631674,-300.0,2.611e-05,2]
[407990952,1772982631683,-300.0,2.611e-05,2]
[407990954,1772982631694,-300.0,2.611e-05,2]
[407990956,1772982631703,-300.0,2.611e-05,2]
[407990958,1772982631712,-300.0,2.611e-05,2]
[407990960,1772982631721,-300.0,2.611e-05,2]
[407990962,1772982631730,-300.0,2.611e-05,2]
[407990964,1772982631739,-300.0,2.611e-05,2]
[407990966,1772982631748,-300.0,2.611e-05,2]
[407990968,1772982631758,-300.0,2.611e-05,2]
[407990969,1772982631768,-300.0,2.611e-05,2]
[407990970,1772982631779,-300.0,2.611e-05,2]
[407990971,1772982631788,-300.0,2.611e-05,2]
[407990972,1772982631797,-600.0,2.638e-05,2]
[407990973,1772982631809,-500.0,2.703e-05,2]
[407990974,1772982631818,-500.0,2.703e-05,2]
[407990975,1772982631826,-500.0,2.703e-05,2]
[407990976,1772982631835,-500.0,2.703e-05,2]
[407990977,1772982631843,-500.0,2.703e-05,2]
[407990978,1772982631854,-170.8649318,2.703e-05,2]
[407990979,1772982631867,-329.1350682,2.703e-05,2]
[407990980,1772982631876,-162.8649318,2.703e-05,2]
[407990981,1772982631888,-337.1350682,2.703e-05,2]
[407990982,1772982631897,-483.8829318,2.703e-05,2]
[407990983,1772982631909,-16.1170682,2.703e-05,2]
[407990984,1772982631919,-500.0,2.703e-05,2]
[407990985,1772982631930,-500.0,2.703e-05,2]
[407990986,1772982631940,-500.0,2.703e-05,2]
[407990987,1772982631950,-500.0,2.703e-05,2]
[407990988,1772982631960,-500.0,2.703e-05,2]
[407990989,1772982631970,-500.0,2.703e-05,2]
[407990990,1772982631979,-11849.42339472,2.724e-05,2]
[407990991,1772982631990,-12616.2174249,2.724e-05,2]
[407990992,1772982632002,-2711.43230879,2.724e-05,2]
[407990993,1772982632013,-7853.11114865,2.724e-05,2]
[407991000,1772982637659,-922.20078356,2.697e-05,2]
[407991001,1772982637686,-343.2142,2.697e-05,2]
[407991006,1772982640056,-3734.58501644,2.697e-05,2]
[407991008,1772982640066,-59916.29061888,2.724e-05,2]
[407991010,1772982640078,-3429.6,2.724e-05,2]
[407991013,1772982640099,-14343.39999998,2.724e-05,2]
[407991290,1772982642752,-479.54758324,2.724e-05,2]
[407991291,1772982642918,-2021.30552104,2.724e-05,2]
[407991314,1772982645661,-39999.572217,2.724e-05,2]
[407991315,1772982645685,-23924.07310326,2.724e-05,2]
[407991316,1772982647180,-657929.4390541,2.724e-05,2]
[407991317,1772982647191,-62263.18223013,2.724e-05,2]
[407991318,1772982647202,-3357.77511005,2.724e-05,2]
[407991319,1772982647214,-3434.39561462,2.724e-05,2]
[407991320,1772982717273,1576.9064054,1.655e-05,2]
[407991321,1772982867773,150.5,2e-05,2]
[407991343,1772983717027,-4599.96614327,2.326e-05,2]
[407991344,1772983717053,-5000.0,2.35e-05,2]
[407991345,1772983717077,-300.0,2.396e-05,2]
[407991346,1772983717100,-100.03385673,2.397e-05,2]
[407991347,1772983719176,-1099.96614327,2.397e-05,2]
[407991348,1772983719203,-500.0,2.503e-05,2]
[407991349,1772983719224,-500.0,2.503e-05,2]
[407991350,1772983719245,-500.0,2.503e-05,2]
[407991351,1772983719266,-500.0,2.503e-05,2]
[407991352,1772983719286,-500.0,2.503e-05,2]
[407991353,1772983719307,-500.0,2.503e-05,2]
[407991354,1772983719327,-500.0,2.503e-05,2]
[407991355,1772983719348,-500.0,2.503e-05,2]
[407991356,1772983719368,-500.0,2.503e-05,2]
[407991357,1772983719388,-500.0,2.503e-05,2]
[407991358,1772983719409,-500.0,2.503e-05,2]
[407991359,1772983719429,-500.0,2.503e-05,2]
[407991360,1772983719450,-500.0,2.503e-05,2]
[407991361,1772983719470,-500.0,2.503e-05,2]
[407991362,1772983719491,-500.0,2.503e-05,2]
[407991363,1772983719511,-500.0,2.503e-05,2]
[407991364,1772983719531,-500.0,2.503e-05,2]
[407991365,1772983719551,-400.03385673,2.503e-05,2]
[407991366,1772983720973,-99.96614327,2.503e-05,2]
[407991367,1772983720997,-9900.03385673,2.524e-05,2]
[407991368,1772983722620,-10000.0,2.524e-05,2]
[407991369,1772983723805,-1868.92933496,2.478e-05,2]
[407991370,1772983723831,-8131.07066504,2.524e-05,2]
[407991377,1772983740784,-1000.0,2.524e-05,2]
[407991400,1772983831686,-292.03680659,2.561e-05,2]
[407991402,1772983831696,-50.54411705,2.598e-05,2]
[407991405,1772983831708,-3461.90667496,2.598e-05,2]
[407991406,1772983831718,-300.0,2.602e-05,2]
[407991408,1772983831727,-500.0,2.603e-05,2]
[407991410,1772983831737,-500.0,2.603e-05,2]
[407991412,1772983831746,-23.2987807,2.603e-05,2]
[407991419,1772983831798,-476.7012193,2.603e-05,2]
[407991421,1772983831809,-500.0,2.603e-05,2]
[407991423,1772983831818,-500.0,2.603e-05,2]
[407991425,1772983831827,-1957.856,2.624e-05,2]
[407991427,1772983831836,-250.0,2.624e-05,2]
[407991429,1772983831845,-500.0,2.624e-05,2]
[407991431,1772983831855,-250.0,2.624e-05,2]
[407991433,1772983831864,-500.0,2.624e-05,2]
[407991436,1772983831873,-500.0,2.624e-05,2]
[407991439,1772983831883,-250.0,2.624e-05,2]
[407991441,1772983831893,-500.0,2.624e-05,2]
[407991444,1772983831902,-500.0,2.624e-05,2]
[407991446,1772983831912,-250.0,2.624e-05,2]
[407991448,1772983831921,-162.380719,2.624e-05,2]
[407991450,1772983831930,-500.0,2.624e-05,2]
[407991452,1772983831939,-250.0,2.624e-05,2]
[407991454,1772983831949,-500.0,2.624e-05,2]
[407991456,1772983831958,-168.3888056,2.624e-05,2]
[407991458,1772983831968,-250.0,2.624e-05,2]
[407991460,1772983831977,-336.07002427,2.624e-05,2]
[407991553,1772983837935,-163.92997573,2.624e-05,2]
[407991555,1772983837947,-250.0,2.624e-05,2]
[407991557,1772983837957,-500.0,2.624e-05,2]
[407991559,1772983837970,-174.61919141,2.624e-05,2]
[407991561,1772983837980,-250.0,2.624e-05,2]
[407991563,1772983837992,-500.0,2.624e-05,2]
[407991565,1772983838004,-250.0,2.624e-05,2]
[407991567,1772983838013,-500.0,2.624e-05,2]
[407991569,1772983838023,-181.08010149,2.624e-05,2]
[407991571,1772983838033,-250.0,2.624e-05,2]
[407991573,1772983838044,-500.0,2.624e-05,2]
[407991575,1772983838053,-230.4088309,2.624e-05,2]
[407991612,1772983840520,-19.5911691,2.624e-05,2]
[407991613,1772983840530,-500.0,2.624e-05,2]
[407991614,1772983840539,-187.78006525,2.624e-05,2]
[407991615,1772983840548,-250.0,2.624e-05,2]
[407991616,1772983840557,-500.0,2.624e-05,2]
[407991617,1772983840566,-537.6845,2.624e-05,2]
[407991618,1772983840575,-250.0,2.624e-05,2]
[407991619,1772983840584,-500.0,2.624e-05,2]
[407991620,1772983840593,-194.72792766,2.624e-05,2]
[407991621,1772983840602,-500.0,2.624e-05,2]
[407991622,1772983840614,-250.0,2.624e-05,2]
[407991623,1772983840623,-250.0,2.624e-05,2]
[407991624,1772983840632,-500.0,2.624e-05,2]
[407991625,1772983840641,-201.93286099,2.624e-05,2]
[407991626,1772983840652,-500.0,2.624e-05,2]
[407991627,1772983840661,-250.0,2.624e-05,2]
[407991628,1772983840670,-500.0,2.624e-05,2]
[407991629,1772983840679,-250.0,2.624e-05,2]
[407991630,1772983840688,-500.0,2.624e-05,2]
[407991631,1772983840698,-250.0,2.624e-05,2]
[407991633,1772983840707,-209.40437684,2.624e-05,2]
[407991635,1772983840718,-500.0,2.624e-05,2]
[407991637,1772983840727,-250.0,2.624e-05,2]
[407991639,1772983840737,-500.0,2.624e-05,2]
[407991641,1772983840746,-250.0,2.624e-05,2]
[407991643,1772983840756,-162.380719,2.624e-05,2]
[407991645,1772983840765,-500.0,2.624e-05,2]
[407991646,1772983840775,-217.15233878,2.624e-05,2]
[407991648,1772983840784,-250.0,2.624e-05,2]
[407991651,1772983840793,-500.0,2.624e-05,2]
[407991653,1772983840803,-250.0,2.624e-05,2]
[407991654,1772983840812,-225.18697532,2.624e-05,2]
[407991657,1772983840822,-250.0,2.624e-05,2]
[407991659,1772983840831,-500.0,2.624e-05,2]
[407991661,1772983840840,-194.63591112,2.624e-05,2]
[407991663,1772983840850,-153.60394488,2.624e-05,2]
[407991691,1772983841096,-96.39605512,2.624e-05,2]
[407991693,1772983841105,-66.62764655,2.624e-05,2]
[407991736,1772983841664,-199.41205881,2.624e-05,2]
[407991737,1772983841674,-233.51889341,2.624e-05,2]
[407991738,1772983841684,-500.0,2.624e-05,2]
[407991739,1772983841693,-250.0,2.624e-05,2]
[407991740,1772983841702,-242.15909246,2.624e-05,2]
[407991741,1772983841711,-500.0,2.624e-05,2]
[407991742,1772983841720,-250.0,2.624e-05,2]
[407991743,1772983841730,-151.0,2.624e-05,2]
[407991744,1772983841740,-251.11897888,2.624e-05,2]
[407991745,1772983841749,-500.0,2.624e-05,2]
[407991746,1772983841759,-250.0,2.624e-05,2]
[407991747,1772983841768,-38.89097644,2.624e-05,2]
[407991748,1772983841780,-221.51940466,2.624e-05,2]
[407991749,1772983841790,-500.0,2.624e-05,2]
[407991750,1772983841800,-250.0,2.624e-05,2]
[407991751,1772983841809,-153.82648637,2.624e-05,2]
[407991772,1772983842876,-346.17351363,2.624e-05,2]
[407991773,1772983842887,-250.0,2.624e-05,2]
[407991774,1772983842895,-250.0,2.624e-05,2]
[407991775,1772983842905,-270.0455652,2.624e-05,2]
[407991776,1772983842914,-280.03725112,2.624e-05,2]
[407991777,1772983842923,-250.0,2.624e-05,2]
[407991778,1772983842931,-156.587,2.624e-05,2]
[407991779,1772983842940,-250.0,2.624e-05,2]
[407991780,1772983842948,-290.39862941,2.624e-05,2]
[407991781,1772983842957,-301.1433787,2.624e-05,2]
[407991782,1772983842966,-2150.738,2.624e-05,2]
[407991783,1772983842975,-445.202766,2.624e-05,2]
[407991784,1772983842984,-351.0,2.649e-05,2]
[407991785,1772983842993,-351.0,2.649e-05,2]
[407991786,1772983843002,-351.0,2.649e-05,2]
[407991787,1772983843010,-351.0,2.649e-05,2]
[407991788,1772983843019,-351.0,2.649e-05,2]
[407991789,1772983843028,-351.0,2.649e-05,2]
[407991790,1772983843037,-217.71543558,2.649e-05,2]
[407991791,1772983843047,-133.28456442,2.649e-05,2]
[407991792,1772983843056,-351.0,2.649e-05,2]
[407991793,1772983843065,-300.0,2.675e-05,2]
[407991794,1772983843074,-300.0,2.675e-05,2]
[407991795,1772983843083,-300.0,2.675e-05,2]
[407991796,1772983843092,-300.0,2.675e-05,2]
[407991797,1772983843100,-300.0,2.675e-05,2]
[407991798,1772983843109,-15.71543558,2.675e-05,2]
[407991799,1772983843124,-284.28456442,2.675e-05,2]
[407991800,1772983843133,-300.0,2.675e-05,2]
[407991801,1772983843142,-300.0,2.675e-05,2]
[407991803,1772983843151,-104.72548262,2.675e-05,2]
[407991807,1772983845760,-195.27451738,2.675e-05,2]
[407991808,1772983845769,-300.0,2.675e-05,2]
[407991809,1772983845778,-300.0,2.675e-05,2]
[407991810,1772983845787,-300.0,2.675e-05,2]
[407991811,1772983845797,-300.0,2.675e-05,2]
[407991812,1772983845806,-300.0,2.675e-05,2]
[407991813,1772983845815,-300.0,2.675e-05,2]
[407991814,1772983845825,-600.0,2.675e-05,2]
[407991815,1772983845834,-1510.50526263,2.679e-05,2]
[407991816,1772983845843,-11538.52345133,2.697e-05,2]
[407991817,1772983845852,-1461.54719823,2.697e-05,2]
[407991818,1772983845926,-14169.89241884,2.697e-05,2]
[407991824,1772983983237,-151.21344156,2.643e-05,2]
[407991825,1772983983291,-151.21344156,2.67e-05,2]
[407991826,1772983983316,-300.0,2.678e-05,2]
[407991827,1772983983339,-1397.57311688,2.679e-05,2]
[407991828,1772983985080,-2000.0,2.679e-05,2]
[407991829,1772983985508,-2000.0,2.679e-05,2]
[407991830,1772983985987,-2000.0,2.679e-05,2]
[407991831,1772983986460,-500.0,2.677e-05,2]
[407991832,1772983986486,-1500.0,2.679e-05,2]
[407991833,1772983986622,-2000.0,2.679e-05,2]
[407991834,1772983986963,-500.0,2.677e-05,2]
[407991835,1772983986985,-1500.0,2.679e-05,2]
[407991836,1772983987311,-500.0,2.677e-05,2]
[407991837,1772983987334,-643.28020132,2.679e-05,2]
[407991838,1772983987357,-856.71979868,2.697e-05,2]
[407991839,1772983987971,-500.0,2.677e-05,2]
[407991840,1772983987996,-1500.0,2.697e-05,2]
[407991841,1772983988136,-2000.0,2.697e-05,2]
[407991842,1772983988542,-162.380719,2.677e-05,2]
[407991843,1772983988565,-500.0,2.677e-05,2]
[407991844,1772983988587,-1337.619281,2.697e-05,2]